[Event "FIDE WSTC Open 50 2025"]
[Site "Prague"]
[Date "2025.02.23"]
[Round "6.10"]
[White "Conquest, Stuart C"]
[Black "Petursson, Margeir"]
[Result "1-0"]
[Annotator "TA"]
[ECO "B90"]
[WhiteElo "2513"]
[BlackElo "2403"]
[PlyCount "85"]
[EventDate "2025.02.17"]
[EventType "team-tourn"]
[EventCountry "CZE"]
[SourceTitle "playchess.com"]
[Source "ChessBase"]
[SourceQuality "1"]
[TimeControl "40/5400+30:1800+30"]

{[%evp 15,85,6,42,35,38,23,18,0,0,-4,-18,-12,-11,-18,-20,-20,-17,-4,-6,-20,49,62,53,56,61,53,62,31,66,55,131,130,155,142,169,151,152,143,223,232,243,235,242,250,227,188,186,174,150,145,150,98,135,120,147,139,209,180,304,285,364,262,276,262,470,440,467,437,448,434,407,278]} 1. e4 {[%emt 0:00:23]} c5 {[%emt 0:00:06]} 2. Nf3 {[%emt 0:00:33]} d6 {[%emt 0:00:12]} 3. d4 {[%emt 0:00:49]} cxd4 {[%emt 0:00:05]} 4. Nxd4 {[%emt 0:00:09]} Nf6 {[%emt 0:00:04]} 5. Nc3 {[%emt 0:00:16]} a6 {[%emt 0:00:07]} 6. f3 {[%emt 0:02:33]} e5 {[%emt 0:01:48]} 7. Nb3 {[%emt 0:00:24]} Be6 {[%emt 0:00:48]} 8. Be3 {[%emt 0:00:55]} h5 {[%emt 0:00:34]} (8... Nbd7 $5) 9. Be2 {[%emt 0:09:25] B90: Sicilian Najdorf: Unusual White 6th moves, 6 Be3 Ng4 and 6 Be3 e5.} Be7 {[%emt 0:05:12]} 10. O-O {[%emt 0:02:48]} Nbd7 {[%emt 0:04:03][%cal Bb8d7,Bd7b6,Bb6c4,Bc4e3][%mdl 32]} 11. Qe1 {[%emt 0:16:24] The position is equal.} b5 {[%emt 0:09:51]} 12. Rd1 {[%emt 0:03:05]} Qc7 {[%emt 0:03:58]} 13. a3 $146 {[%emt 0:19:38]} (13. Qd2 O-O 14. Nd5 Bxd5 15. exd5 Nb6 16. Bxb6 Qxb6+ 17. Kh1 a5 18. f4 Rfd8 19. Qd3 {1-0 Alvarez Alonso,A (1865)-Reyes Lopez,A (1513) Santa Cruz de Tenerife Trophy 2017 (8)}) 13... Nb6 {[%emt 0:11:15]} 14. Qf2 {[%emt 0:13:23]} Rb8 {[%emt 0:01:17]} 15. Na2 {[%emt 0:07:03]} Nc4 {[%emt 0:05:55] Hoping for ...Nxe3.} 16. Nb4 {[%emt 0:03:09]} Nxe3 {[%emt 0:12:57]} 17. Qxe3 {[%emt 0:00:26]} Bc8 {[%emt 0:03:12]} (17... Ra8 $11) 18. Rd3 $1 $14 {[%emt 0:01:49]} Qb6 {[%emt 0:13:12]} 19. Qxb6 {[%emt 0:00:48]} Rxb6 {[%emt 0:00:02]} 20. Rc3 {[%emt 0:00:25]} Bd7 {[%emt 0:04:17]} 21. Na5 {[%emt 0:05:12]} Bd8 {[%emt 0:01:52]} 22. Rd1 {[%emt 0:01:05]} O-O {[%emt 0:05:24]} ({Black should try} 22... h4 $14) 23. Nac6 {[%emt 0:02:35] White is much more active. The black rooks are passive.} Bxc6 {[%emt 0:01:10]} 24. Nxc6 {[%emt 0:01:02]} Rb7 {[%emt 0:02:42]} 25. Nxd8 {[%emt 0:02:19]} Rxd8 {[%emt 0:00:03]} 26. Rc6 $1 {[%emt 0:00:12][%csl LRa6,LRd6] Inhibits Rb6.} d5 {[%emt 0:02:39]} (26... Ra7 $16 27. Rdxd6 (27. Rcxd6 Rxd6 28. Rxd6 Kf8 $18) 27... Rxd6 28. Rxd6 h4) 27. Rxa6 $18 {[%emt 0:01:28]} b4 {[%emt 0:02:04]} 28. exd5 {[%emt 0:03:53]} bxa3 {[%emt 0:00:55]} 29. bxa3 {[%emt 0:00:36]} ({But not} 29. Rxa3 $6 Rxb2 30. Bd3 g6 $16) 29... Rxd5 {[%emt 0:00:40]} 30. Rxd5 {[%emt 0:00:54]} Nxd5 {[%emt 0:00:06][%mdl 4096] Endgame KRB-KRN. White is a pawn up.} 31. Ra8+ {[%emt 0:00:54]} Kh7 {[%emt 0:00:05]} 32. Bd3+ {[%emt 0:00:34]} g6 {[%emt 0:01:03]} 33. Be4 {[%emt 0:01:10]} (33. g3 $142) 33... Rb1+ $16 {[%emt 0:01:34]} 34. Kf2 {[%emt 0:00:03]} Nc3 {[%emt 0:00:13] [#]} 35. Bd3 $1 {[%emt 0:00:59]} Ra1 {[%emt 0:03:54] [#]} (35... Kg7 $16 36. Ra5 Ra1) 36. Ra7 $1 $18 {[%emt 0:00:19]} Kh6 {[%emt 0:03:30]} (36... Kg7 {was called for.} 37. Bc4 Rd1) 37. Rxf7 {[%emt 0:00:19]} Nd5 {[%emt 0:00:06]} 38. Ra7 {[%emt 0:00:20]} Nf4 {[%emt 0:00:15]} 39. Be4 {[%emt 0:00:56]} Rd1 $2 {[%emt 0:00:19]} (39... Rh1) 40. g3 {[%emt 0:00:24]} Nh3+ {[%emt 0:00:30]} 41. Ke2 {[%emt 0:30:50]} Rh1 {[%emt 0:30:10]} 42. Ra6 {[%emt 0:00:00]} Rxh2+ {[%emt 0:00:00]} 43. Ke3 {[%emt 0:00:00] Weighted Error Value: White=0.09 (flawless) /Black=0.28 (precise)   Mistake:       	White=1     	Black=6      Inaccurate:     	White=2     	Black=1      OK:         	White=10    	Black=16     Best:        	White=5     	Black=1      Strong:       	White=3     	---} 1-0

[Event "FIDE WSTC Open 50 2025"]
[Site "Prague"]
[Date "2025.02.23"]
[Round "6.11"]
[White "Olafsson, Helgi"]
[Black "Wells, Peter K"]
[Result "1/2-1/2"]
[Annotator "TA"]
[ECO "A06"]
[WhiteElo "2466"]
[BlackElo "2358"]
[PlyCount "124"]
[EventDate "2025.02.17"]
[EventType "team-tourn"]
[EventCountry "CZE"]
[SourceTitle "playchess.com"]
[Source "ChessBase"]
[SourceQuality "1"]
[TimeControl "40/5400+30:1800+30"]

{[%evp 9,124,15,11,5,6,10,14,0,-7,-20,2,2,8,9,41,34,30,33,33,35,55,54,72,62,48,49,68,65,93,86,86,78,76,81,80,80,110,109,116,114,114,99,158,153,176,152,199,213,211,82,85,85,70,89,75,68,66,64,70,74,72,77,70,76,103,95,91,78,86,50,57,8,35,34,79,60,87,59,66,91,116,98,95,98,389,389,370,350,383,335,364,353,356,338,226,8,0,8,8,8,89,8,734,680,566,820,543,0,0,0,0,0,0,0,0,0,0]} 1. Nf3 {[%emt 0:00:07]} d5 {[%emt 0:00:22]} 2. g3 {[%emt 0:00:35]} c6 {[%emt 0:01:18]} 3. Bg2 {[%emt 0:00:15]} Bg4 {[%emt 0:00:16]} 4. O-O {[%emt 0:00:43]} e6 {[%emt 0:02:43]} 5. d3 {[%emt 0:12:15]} Bd6 6. e4 {A07: Réti Opening: New York and Capablanca Systems.} Ne7 {[%emt 0:06:37]} 7. h3 {[%emt 0:01:22]} Bh5 8. g4 {[%emt 0:04:31]} Bg6 {[%emt 0:01:02]} 9. Nh4 $146 {[%emt 0:00:13]} ({Predecessor:} 9. e5 Bc7 10. Re1 Nd7 11. Nbd2 c5 12. Nf1 Nc6 13. Ng3 Ndxe5 14. Nxe5 Nxe5 15. f4 {0-1 Derjabin,I (2209)-Berezin,O (2428) UKR-ch sf op 2001}) 9... dxe4 {[%emt 0:39:17]} 10. dxe4 {[%emt 0:00:29]} f6 {[%emt 0:15:08]} 11. Nd2 {[%emt 0:03:27]} Bc7 12. Nc4 {[%emt 0:05:56]} O-O {[%emt 0:05:41]} 13. Qe2 {[%emt 0:00:30]} Nd7 {[%emt 0:07:19]} 14. Rd1 {[%emt 0:08:54]} b5 {[%emt 0:09:13]} 15. Nd6 {[%emt 0:00:30]} Bxd6 {[%emt 0:00:22]} 16. Rxd6 {[%emt 0:00:06][%cal Oe2d2]} Qc7 $1 {[%emt 0:00:03]} 17. Bf4 {[%emt 0:05:24]} e5 {[%emt 0:01:07]} 18. Rad1 {[%emt 0:00:05]} Rad8 {[%emt 0:01:00]} 19. Be3 $36 {[%emt 0:00:46][%mdl 2048] White is really pushing. White is much more active.} Nb6 {[%emt 0:03:04][%cal Bd7b6,Bb6c4,Bc4e3][%mdl 32]} 20. Qd3 {[%emt 0:02:06]} Rxd6 {[%emt 0:01:03]} 21. Qxd6 {[%emt 0:00:43]} Qxd6 {[%emt 0:01:14]} 22. Rxd6 {[%emt 0:00:09]} Nc4 23. Rd7 {[%emt 0:02:51]} Nxe3 {[%emt 0:02:57]} 24. fxe3 {[%emt 0:01:33]} (24. Rxe7 $6 Nxc2 25. Nf5 Bxf5 26. exf5 Rf7 27. Re8+ Rf8 28. Rxf8+ Kxf8 29. Bxc6 Nd4 $11) 24... Nc8 {[%emt 0:00:46]} 25. Rc7 {[%emt 0:02:49][%cal Oh4f5]} Bf7 {[%emt 0:01:45]} (25... Nb6 $142) 26. Nf5 $16 {[%emt 0:00:56][%cal Oc7c8]} Nb6 {[%emt 0:00:25]} 27. b3 {[%emt 0:00:10]} (27. Rxc6 Bxa2 28. Ne7+ Kf7) 27... g6 {[%emt 0:00:43]} (27... Ra8 $16 28. Bf3 (28. Rxc6 Be8 $18) 28... Kf8) 28. Ne7+ $18 {[%emt 0:04:25]} Kg7 {[%emt 0:00:11]} 29. Nxc6 (29. Bf1 $18) 29... Rc8 $16 {[%emt 0:00:02]} 30. Rxc8 {[%emt 0:00:37]} Nxc8 {[%emt 0:01:18][%mdl 4096] Endgame KBN-KBN. White is a pawn up.} 31. Bf1 {[%emt 0:05:05]} Be8 {[%emt 0:00:08]} 32. Bxb5 {[%emt 0:00:30][%cal Oc6a7]} Nd6 {[%emt 0:00:30][%csl LRb5,LRe4]} 33. Ba4 {[%emt 0:03:05]} a6 {[%emt 0:00:44]} 34. Nb4 {[%emt 0:00:07]} Bxa4 {[%emt 0:00:07]} 35. bxa4 {[%emt 0:00:30] KN-KN. White is two pawns up.} a5 {[%emt 0:00:30]} 36. Nc6 {[%emt 0:00:16]} Nxe4 {[%emt 0:00:54]} 37. Nxa5 {[%emt 0:00:08]} Nc3 {[%emt 0:00:09][%csl LRa2,LRa4]} 38. Kf2 {[%emt 0:01:48]} Nxa4 {[%emt 0:00:40]} 39. a3 {[%emt 0:01:35]} f5 {[%emt 0:00:46]} 40. c4 {[%emt 0:04:30]} (40. Nb3 $14) 40... Kf6 {[%emt 0:00:23]} 41. Nb3 {[%emt 0:30:10]} Ke6 {[%emt 0:04:23]} 42. gxf5+ gxf5 43. Kg3 {[%emt 0:00:00]} Nc3 {[%emt 0:12:48]} 44. Nd2 {[%emt 0:00:00]} e4 {[%emt 0:04:00]} 45. Nb3 {[%emt 0:00:00]} Ke5 {[%emt 0:01:07]} 46. c5 {[%emt 0:00:00]} Nd1 $2 {[%emt 0:09:04][%mdl 8192]} (46... Nd5 $16) 47. c6 $18 {[%emt 0:00:00]} Kd6 {[%emt 0:00:56]} (47... Nxe3 $2 48. c7 $18) 48. Kf4 {[%emt 0:00:00]} Kxc6 {[%emt 0:00:05]} 49. Nd4+ {[%emt 0:00:00]} (49. Kxf5 Nxe3+ 50. Kxe4 Nc4 $16) 49... Kd5 {[%emt 0:00:14][%cal Od1e3]} 50. Nxf5 {[%emt 0:00:00]} Nc3 51. Nd4 {[%emt 0:00:00]} Kc4 {[%emt 0:01:04] [#]} 52. h4 $2 {[%emt 0:00:00]} (52. Ne6 $1 $18) 52... Kd3 $11 {[%emt 0:00:33]} 53. Ne6 {[%emt 0:00:00] aiming for Nc5+.} Ne2+ {[%emt 0:00:32]} 54. Ke5 {[%emt 0:00:00]} Kxe3 {[%emt 0:00:23]} (54... Nc3 $1 $11) 55. a4 {[%emt 0:00:00]} ({White should try} 55. Ng5 $16) 55... Nc3 {[%emt 0:02:23][%mdl 8192]} (55... Kf2 $11) 56. a5 $18 {[%emt 0:00:00]} Kf2 {[%emt 0:00:08]} 57. Kd4 {[%emt 0:00:00]} e3 {[%emt 0:00:15] [#]} 58. Nf4 $2 {[%emt 0:00:00]} (58. Kxc3 $2 e2 59. Kc4 e1=Q $19 (59... e1=B $2 {loses.} 60. a6 $18)) (58. Kc5 $1 $18) 58... Ne2+ {[%emt 0:00:56] The position is equal.} 59. Nxe2 {[%emt 0:00:00]} Kxe2 {[%emt 0:00:03]} 60. a6 {[%emt 0:00:00]} Kf2 $1 {[%emt 0:00:04]} 61. a7 {[%emt 0:00:00]} e2 {[%emt 0:00:04]} 62. a8=Q {[%emt 0:00:00] White wants to mate with Qa2.} e1=Q {[%emt 0:00:07] Weighted Error Value: White=0.25 (precise) /Black=0.27 (precise)   Loses game:     	---       	Black=2      Missed win:     	White=2     	---        Mistake:       	White=3     	Black=3      Inaccurate:     	White=1     	Black=7      OK:         	White=34    	Black=17     Best:        	White=4     	Black=7      Strong:       	---       	Black=2} (62... e1=B 63. Qe4 Bd2 64. Qf5+ (64. Qxh7 Kf3 65. Qd3+ Kf4 66. Qxd2+ Kf5 67. Qh6 Kg4 68. Ke4 Kg3 69. Ke3 Kg4 70. Qg5+ Kh3 71. Kf2 Kh2 72. Qg2#) 64... Kg2 65. Ke4 (65. Qxh7 Kf2 66. Qc2 Ke1 67. Kd3 Kf2 68. Qxd2+ Kf3 69. Qg5 Kf2 70. Qg4 Kf1 71. Ke3 Ke1 72. Qg1#) 65... Kg3 66. Qxh7 Be1 67. Qh5) 1/2-1/2

[Event "FIDE WSTC Open 50 2025"]
[Site "Prague"]
[Date "2025.02.23"]
[Round "6.12"]
[White "Hebden, Mark L"]
[Black "Arnason, Jon L"]
[Result "1-0"]
[Annotator "TA"]
[ECO "D02"]
[WhiteElo "2363"]
[BlackElo "2405"]
[PlyCount "105"]
[EventDate "2025.02.17"]
[EventType "team-tourn"]
[EventCountry "CZE"]
[SourceTitle "playchess.com"]
[Source "ChessBase"]
[SourceQuality "1"]
[TimeControl "40/5400+30:1800+30"]

{[%evp 9,105,2,18,14,18,11,16,17,8,21,26,14,12,14,12,10,12,0,8,-2,-6,-41,0,-32,2,-20,-2,-45,0,0,0,-16,0,0,15,34,61,62,42,24,13,20,45,38,49,39,185,168,169,179,193,139,150,131,93,105,165,129,145,136,144,142,306,325,282,286,479,468,579,579,766,730,1054,1039,684,941,1064,1009,770,990,1548,1485,2025,1781,5210,6614,29960,29961,29961,29963,29966,29968,29966,29968,29967,29967,29977,29974]} 1. d4 {[%emt 0:00:18]} d5 {[%emt 0:00:25]} 2. Nf3 {[%emt 0:00:49]} Nf6 {[%emt 0:00:21]} 3. Bf4 {[%emt 0:00:28]} e6 {[%emt 0:00:45]} 4. e3 {[%emt 0:02:05]} c5 {[%emt 0:01:28]} 5. Nbd2 {[%emt 0:03:11]} Qb6 {[%emt 0:07:47]} 6. Rb1 {[%emt 0:05:24] D02: 1 d4 d5 2 Nf3 sidelines, including 2...Nf6 3 g3 and 2...Nf6 3 Bf4.} cxd4 {[%emt 0:01:15]} 7. exd4 {[%emt 0:00:34]} Bd7 {[%emt 0:00:23]} 8. c3 {[%emt 0:02:56] The position is equal.} Bb5 {[%emt 0:03:06]} 9. Qb3 {[%emt 0:01:46]} Bxf1 {[%emt 0:01:14]} 10. Qxb6 {[%emt 0:00:15]} axb6 {[%emt 0:00:05]} 11. Rxf1 {[%emt 0:04:27]} Nbd7 $146 {[%emt 0:06:36][%cal Bb8d7,Bd7f6,Bf6d5][%mdl 32]} ({Predecessor:} 11... Nc6 12. a3 b5 13. Ne5 Nxe5 14. Bxe5 Nd7 15. Bf4 Nb6 16. Nb3 h5 17. Nc1 Be7 {½-½ Murzin,V (2627)-Abdusattorov,N (2727) Wch Rapid Samarkand 2023 (13)}) 12. a3 {[%emt 0:00:29]} Nh5 {[%emt 0:01:33]} 13. Bg3 {[%emt 0:02:04]} Nxg3 {[%emt 0:04:10]} 14. hxg3 {[%emt 0:00:19]} Bd6 {[%emt 0:00:33]} 15. c4 {[%emt 0:02:34]} O-O {[%emt 0:18:26]} (15... b5 $5 16. c5 Be7 $11) 16. Ke2 {[%emt 0:03:14]} Nf6 {[%emt 0:10:01]} 17. Rfe1 {[%emt 0:04:20]} Rfd8 {[%emt 0:00:49]} 18. Rbc1 {[%emt 0:09:48]} dxc4 {[%emt 0:05:58]} 19. Nxc4 {[%emt 0:01:36]} Nd5 {[%emt 0:01:37]} 20. Rc2 {[%emt 0:02:35]} Be7 {[%emt 0:04:20]} 21. Rec1 {[%emt 0:01:54]} b5 {[%emt 0:09:22]} 22. Ne3 {[%emt 0:00:15]} b4 {[%emt 0:00:48]} 23. Nxd5 {[%emt 0:00:34]} exd5 {[%emt 0:00:08] [#]} 24. a4 $1 {[%emt 0:04:33]} Bd6 {[%emt 0:07:48] Inhibits Rc7.} 25. b3 {[%emt 0:00:27]} Kf8 {[%emt 0:01:53]} 26. Kd3 {[%emt 0:01:06]} h6 {[%emt 0:00:26]} 27. Ne5 {[%emt 0:00:35]} g5 {[%emt 0:01:16] [#]} (27... g6 $14) 28. Ng4 $1 $18 {[%emt 0:01:03]} Kg7 {[%emt 0:03:39]} 29. Ne3 {[%emt 0:00:24]} Kg6 {[%emt 0:02:45]} 30. g4 {[%emt 0:03:18]} ({White should try} 30. Nxd5 $18 Bxg3 31. Ne7+ (31. Nxb4 Be5 $16) 31... Kf6 32. fxg3 Kxe7 33. Re2+ Kf6 34. Rc7) 30... Bf4 $16 {[%emt 0:03:54]} 31. Rc5 {[%emt 0:00:19][%cal Oc5b5]} Bxe3 {[%emt 0:01:04]} 32. fxe3 {[%emt 0:00:43][%mdl 4096] Endgame KRR-KRR} Ra6 {[%emt 0:01:25]} (32... Rd7 $16) 33. Rb5 {[%emt 0:00:30]} Rd7 {[%emt 0:00:38]} 34. Rcc5 {[%emt 0:04:12] White is more active.} Rad6 {[%emt 0:00:07]} 35. Rxb4 {[%emt 0:02:20] Strongly threatening Rcb5.} h5 $2 {[%emt 0:00:30]} (35... Re7 $16 36. Rc2 h5) 36. gxh5+ $18 {[%emt 0:00:36]} Kxh5 {[%emt 0:00:04] [#]} 37. Rcb5 {[%emt 0:00:29]} Kg4 $2 {[%emt 0:00:38]} (37... Rc7 {was called for.} 38. Rxb7 Rc1) 38. Rxb7 {[%emt 0:00:18]} Kg3 {[%emt 0:00:34]} 39. a5 {[%emt 0:00:27]} Rxb7 {[%emt 0:01:30]} 40. Rxb7 {[%emt 0:00:07]} Kxg2 {KR-KR. White is a pawn up.} 41. b4 {[%emt 0:30:56]} Ra6 {[%emt 0:04:40]} 42. Rxf7 {[%emt 0:00:00]} g4 {[%emt 0:00:04][%cal Bg5g4,Bg4g3,Bg3g2][%mdl 32]} 43. e4 {[%emt 0:00:00]} dxe4+ {[%emt 0:01:45]} 44. Kxe4 {[%emt 0:00:00]} g3 {[%emt 0:00:05]} 45. d5 {[%emt 0:00:00]} Kh2 {[%emt 0:05:06]} 46. Rh7+ {[%emt 0:00:00]} Kg1 {[%emt 0:00:07]} 47. Rg7 {[%emt 0:00:00]} g2 {[%emt 0:00:05]} 48. Kd4 {[%emt 0:00:00] White mates.} Kf2 {[%emt 0:00:52]} 49. Kc5 {[%emt 0:00:00]} Ra7 {[%emt 0:00:26]} 50. Rxg2+ {[%emt 0:00:00]} (50. Rxa7 g1=Q 51. Rc7 Kg3+ 52. Kb5 Qf1+ 53. Rc4 Qf7 $19) 50... Kxg2 {[%emt 0:00:08]} 51. d6 {[%emt 0:00:00][%cal Bd5d6,Bd6d7][%mdl 32]} Kf3 {[%emt 0:00:21]} 52. Kb6 {[%emt 0:00:00]} Ra8 {[%emt 0:01:50]} 53. d7 {[%emt 0:00:00] Weighted Error Value: White=0.07 (flawless) /Black=0.89  Loses game:     	---       	Black=1      Mistake:       	White=1     	Black=3      Inaccurate:     	White=3     	Black=6      OK:         	White=13    	Black=11     Best:        	White=1     	Black=2} 1-0

[Event "FIDE WSTC Open 50 2025"]
[Site "Prague"]
[Date "2025.02.23"]
[Round "6.13"]
[White "Andersson, Ulf"]
[Black "Aagaard, Jacob"]
[Result "1/2-1/2"]
[Annotator "TA"]
[ECO "D11"]
[WhiteElo "2518"]
[BlackElo "2435"]
[PlyCount "59"]
[EventDate "2025.02.17"]
[EventType "team-tourn"]
[EventCountry "CZE"]
[SourceTitle "playchess.com"]
[Source "ChessBase"]
[SourceQuality "1"]
[TimeControl "40/5400+30:1800+30"]

{[%evp 14,59,30,16,8,0,0,-8,0,0,0,0,0,0,0,0,26,0,8,2,0,0,0,0,0,0,0,0,0,0,4,0,0,0,4,0,6,4,6,3,5,6,4,0,0,0,0,0]} 1. d4 {[%emt 0:02:10]} d5 {[%emt 0:01:43]} 2. c4 {[%emt 0:00:27]} c6 {[%emt 0:00:08]} 3. Nf3 {[%emt 0:01:02]} e6 {[%emt 0:00:14]} 4. Qc2 {[%emt 0:02:42]} dxc4 {[%emt 0:00:27]} 5. Qxc4 {[%emt 0:00:17]} Nf6 {[%emt 0:01:05]} 6. g3 {[%emt 0:03:06]} b5 {[%emt 0:00:23]} 7. Qd3 {[%emt 0:01:33]} Bb7 {[%emt 0:01:21]} 8. Bg2 {[%emt 0:01:02]} Nbd7 {[%emt 0:00:47] D30: Queen's Gambit Declined: Systems without Nc3.} 9. Nbd2 {[%emt 0:03:30]} Qb6 {[%emt 0:03:38]} 10. a4 {[%emt 0:08:51]} a6 {[%emt 0:02:46]} 11. O-O {[%emt 0:00:57]} c5 $146 {[%emt 0:00:43]} (11... Be7 12. a5 Qa7 13. Nb3 c5 14. Nxc5 Nxc5 15. dxc5 Bxc5 16. Ne5 Bxg2 17. Kxg2 O-O {½-½ Juhasz,K (2150)-Bokros,A (2452) Zalakaros op 27th 2008 (1)}) 12. axb5 {[%emt 0:00:26]} axb5 {[%emt 0:01:07]} 13. Rxa8+ {[%emt 0:00:08]} Bxa8 {[%emt 0:00:02]} 14. dxc5 {[%emt 0:02:06]} Nxc5 {[%emt 0:03:03][%cal Bd7c5,Bc5a4,Ba4b6,Bb6d5][%mdl 32]} 15. Qd4 {[%emt 0:02:01]} Be7 {[%emt 0:01:46] The position is equal.} 16. b4 {[%emt 0:07:56]} Na4 {[%emt 0:00:31]} 17. Qxb6 {[%emt 0:01:50]} Nxb6 {[%emt 0:00:12]} 18. Nd4 {[%emt 0:00:10]} Bxg2 {[%emt 0:00:33]} 19. Kxg2 {[%emt 0:00:06]} Bxb4 {[%emt 0:00:31]} 20. Nxb5 {[%emt 0:00:10]} O-O {[%emt 0:00:36]} 21. Nf3 {[%emt 0:00:37]} Nbd5 {[%emt 0:01:59]} 22. Bd2 {[%emt 0:05:50]} Bxd2 {[%emt 0:02:05]} 23. Nxd2 {[%emt 0:00:07]} Rc8 {[%emt 0:01:09]} 24. Ra1 {[%emt 0:03:59]} h6 {[%emt 0:07:02]} 25. Nd6 {[%emt 0:07:34]} Rd8 {[%emt 0:01:09]} 26. N2c4 {[%emt 0:00:42]} Ne8 {[%emt 0:01:30]} 27. Nxe8 {[%emt 0:00:44]} Rxe8 {[%emt 0:00:30]} 28. Ra7 {[%emt 0:01:08]} Re7 {[%emt 0:02:17]} 29. Rxe7 {[%emt 0:06:25]} Nxe7 {[%emt 0:00:09]} 30. Kf3 {[%emt 0:00:03] A rather calm draw.   Weighted Error Value: White=0.02 (flawless) /Black=0.04 (flawless)   Inaccurate:     	White=1     	Black=1      OK:         	White=13    	Black=6} 1/2-1/2

[Event "FIDE WSTC Open 50 2025"]
[Site "Prague"]
[Date "2025.02.23"]
[Round "6.14"]
[White "Jaksland, Tim"]
[Black "Svenn, Gosta"]
[Result "1/2-1/2"]
[Annotator "ChessBase"]
[ECO "B22"]
[WhiteElo "2143"]
[BlackElo "2290"]
[PlyCount "37"]
[EventDate "2025.02.17"]
[EventType "team-tourn"]
[EventCountry "CZE"]
[SourceTitle "playchess.com"]
[Source "ChessBase"]
[SourceQuality "1"]
[TimeControl "40/5400+30:1800+30"]

1. e4 {[%emt 0:00:05]} c5 {[%emt 0:00:16]} 2. c3 {[%emt 0:00:22]} e6 {[%emt 0:00:19]} 3. d4 {[%emt 0:00:51]} d5 {[%emt 0:00:07]} 4. exd5 {[%emt 0:00:40]} exd5 {[%emt 0:00:09]} 5. Bb5+ {[%emt 0:00:32]} Nc6 {[%emt 0:00:18]} 6. Nf3 {[%emt 0:01:25]} Bd6 {[%emt 0:00:15]} 7. dxc5 {[%emt 0:02:44]} Bxc5 {[%emt 0:00:07]} 8. O-O {[%emt 0:00:17]} Nge7 {[%emt 0:00:14]} 9. Nbd2 {[%emt 0:01:10]} O-O {[%emt 0:00:13]} 10. Nb3 {[%emt 0:01:15]} Bb6 {[%emt 0:00:19]} 11. Re1 {[%emt 0:03:03]} Bg4 {[%emt 0:01:57]} 12. Be3 {[%emt 0:07:51]} Bc7 {[%emt 0:02:36]} 13. Be2 {[%emt 0:24:22]} Qd6 {[%emt 0:04:53]} 14. Bc5 {[%emt 0:04:44]} Qf6 {[%emt 0:06:36]} 15. h3 {[%emt 0:16:52]} Bf5 {[%emt 0:10:06]} 16. Nbd4 {[%emt 0:01:19]} Bd7 {[%emt 0:08:06]} 17. Nxc6 {[%emt 0:02:12]} bxc6 {[%emt 0:01:40]} 18. Qd4 {[%emt 0:02:54]} Qxd4 {[%emt 0:03:29]} 19. Nxd4 {[%emt 0:01:36]} 1/2-1/2